Cogmind - Beta 13 X1 @@@ ROGUE MODE // 2023.10.07 @ 17:18:15 Player: f3-rnm Result: Destroyed by L-31 Rogue with Katana Performance ------------- Evolutions (1) 500 Regions Visited (4) 800 Robots Destroyed (110) 550 Value Destroyed (3703) 3703 Prototype IDs (8) 160 Alien Tech Used (0) 0 Bonus (614) 614 TOTAL SCORE: 6327 Bonus ------- High Alert Combat Kills 414 Entered Garrisons 200 Cogmind --------- Core Integrity 0/400 Matter 148/300 Energy 267/280 System Corruption 4% Temperature Cool (0) Movement Treading (240) Ox1 Location -9/Garrison Parts ------- > --- POWER (1) -------- Cooled Ion Engine > --- PROPULSION (3) --- Light Treads Light Treads Improved Treads > --- UTILITY (3) ------ Heat Sink Huge Storage Unit Hardened Light Armor Plating > --- WEAPON (2) ------- Advanced Beam Cannon Grenade Launcher > --- INVENTORY (25) --- Heavy Ion Engine Cooled Ion Engine Improved Treads Improved Treads Huge Storage Unit Medium Battery (150) High-capacity Battery (250) Large Matter Pod (150) Structural Scanner Improved Targeting Computer Improved EM Shotgun Improved EM Shotgun Improved EM Shotgun Light EM Pulse Cannon Particle Cannon Heavy Assault Cannon Hammer Peak State ------------ > --- POWER ------------ Improved Ion Engine > --- PROPULSION ------- Light Treads Light Treads Cooled Aerolev Unit > --- UTILITY ---------- Heat Sink Huge Storage Unit Hardened Light Armor Plating > --- WEAPON ----------- Advanced Beam Cannon Improved Assault Rifle > --- INVENTORY -------- Ion Engine Light Treads Light Treads Light Treads Light Treads Light Treads Light Treads Small Storage Unit Huge Storage Unit Small Battery High-capacity Battery Improved Targeting Computer Hardened Light Armor Plating Hardened Light Armor Plating Hardened Light Armor Plating Tractor Beam Improved EM Shotgun Light EM Pulse Cannon Light EM Pulse Cannon Particle Cannon Particle Cannon Improved Light Cannon Improved Light Cannon Grenade Launcher Mini Grenade Launcher [Rating: 23] Favorites ----------- Power Cooled Ion Engine Engine Cooled Ion Engine Propulsion Light Treads Treads Light Treads Hover Unit Cooled Aerolev Unit Flight Unit Improved Flight Unit Utility Huge Storage Unit Device Heat Sink Storage Huge Storage Unit Processor Improved Targeting Computer Protection Hardened Light Armor Plating Weapon Advanced Beam Cannon Energy Gun Medium Laser Energy Cannon Advanced Beam Cannon Ballistic Gun Improved Assault Rifle Ballistic Cannon Improved Light Cannon Launcher Grenade Launcher Build | -11 -10 -9 -9 -9 ------- Run | Jun Mat Mat Sto Gar Slots Evolved 2 | . . 2 . . Power . | . . . . . Propulsion 1 | . . 1 . . Utility 1 | . . 1 . . Weapon . | . . . . . Parts Attached 69 | 6 2 25 24 12 Power 7 | . 1 3 2 1 Engine 7 | . 1 3 2 1 Core . | . . . . . Reactor . | . . . . . Propulsion 28 | 2 . 11 12 3 Treads 26 | 2 . 10 11 3 Leg . | . . . . . Wheel . | . . . . . Hover 1 | . . . 1 . Flight 1 | . . 1 . . Utility 16 | 1 1 4 7 3 Device 5 | . . 2 2 1 Storage 3 | 1 . 1 1 . Processor 1 | . . 1 . . Hackware . | . . . . . Protection 7 | . 1 . 4 2 Artifact . | . . . . . Weapon 18 | 3 . 7 3 5 Energy Gun 3 | 2 . 1 . . Energy Cannon 5 | . . 2 2 1 Ballistic Gun 6 | 1 . 4 1 . Ballistic Cannon 2 | . . . . 2 Launcher 2 | . . . . 2 Special Weapon . | . . . . . Impact Weapon . | . . . . . Slashing Weapon . | . . . . . Piercing Weapon . | . . . . . Special Melee Weapon . | . . . . . Unidentified Prototypes 8 | . . 6 2 . Parts Lost 14 | . . 7 . 7 Power 2 | . . 1 . 1 Propulsion 5 | . . 2 . 3 Utility 3 | . . 1 . 2 Weapon 4 | . . 3 . 1 Highest Loss Streak 5 | . . 5 . 3 To Critical Strikes . | . . . . . Average Slot Usage (%) 96 | . 83 93 99 97 Engine 10 | . 7 9 10 10 Treads 32 | . 28 31 32 32 Device 9 | . . 9 11 11 Storage 11 | . 14 11 11 11 Processor 1 | . . 3 2 . Protection 8 | . 4 7 8 10 Energy Gun 2 | . 14 3 . . Energy Cannon 10 | . . 5 13 11 Ballistic Gun 7 | . 14 12 8 . Launcher 1 | . . . . 5 Naked Turns . | . . . . . Heaviest Build 102 | 9 15 97 101 102 Greatest Support 69 | 40 40 60 69 69 Greatest Overweight (x) 2 | . . 2 2 2 Average Overweight (x) . | . . 1 1 1 Largest Inventory Capacity 25 | 8 8 25 25 25 Average Capacity 23 | 6 8 24 25 25 Most Carried 25 | 3 8 25 25 25 Average Carried 21 | 2 6 19 24 21 Final Capacity 25 | 8 8 25 25 25 Final Carried 25 | 3 7 25 25 18 Class Distribution -------------------- 85% | Mutant 14% | Scavenger-Mutant Dominant Class ---------------- Mutant | -10/Materials Mutant | -9/Materials Mutant | -9/Storage Mutant | -9/Garrison Resources | -11 -10 -9 -9 -9 ----------- Run | Jun Mat Mat Sto Gar Matter Collected 1913 | 198 157 498 785 275 Remotely . | . . . . . Salvage Created 4108 | . 263 1373 1545 927 Parts 230 | . 17 76 97 40 Haulers Intercepted 12 | . 1 5 6 . Recyclers Shooed 1 | . . . 1 . Parts Field Recycled . | . . . . . Retrieved Matter . | . . . . . Parts Self-Destructed . | . . . . . Prevented . | . . . . . Kills | -11 -10 -9 -9 -9 ------- Run | Jun Mat Mat Sto Gar Combat Hostiles Destroyed 82 | . 9 25 22 26 Guns 30 | . 9 13 8 . Cannons 41 | . . 12 14 15 AOE 11 | . . . . 11 Classes Destroyed 13 | . 3 2 6 2 Worker 6 | . . . 6 . Builder 2 | . . . 2 . Tunneler 1 | . . . 1 . Hauler 12 | . 1 5 6 . Recycler 3 | . . 1 2 . Mechanic 1 | . . . 1 . Operator 1 | . . . 1 . Watcher 2 | . . . 2 . Swarmer 15 | . 6 3 6 . Grunt 45 | . 3 14 7 21 Brawler 1 | . . . . 1 Duelist 2 | . . . . 2 Sentry 19 | . . 8 9 2 Best Kill Streak 10 | . 3 5 10 9 Combat Bots Only 9 | . 3 5 4 9 Max Kills in Single Turn 2 | . 1 1 2 2 Gunslinging . | . . . . . Exploded 2 | . . . . 2 Melee . | . . . . . Uniques/NPCs Destroyed . | . . . . . Combat | -11 -10 -9 -9 -9 -------- Run | Jun Mat Mat Sto Gar Damage Taken 3705 | . 306 971 864 1564 Core 481 | . 65 109 68 239 Absorbed by Shields . | . . . . . Redirected to Shielding 13 | . . 13 . . Regen/Repaired (Parts) 277 | . . . 277 . Core Remaining (%) 87 | 100 74 . . . Volleys Fired 272 | . 25 72 100 75 Largest 2 | . 2 2 2 2 Hottest 136 | . 70 91 136 136 Shots Fired 503 | . 50 139 200 114 Gun 247 | . 50 104 93 . Cannon 238 | . . 35 107 96 Launcher 18 | . . . . 18 Special . | . . . . . Kinetic 214 | . 25 78 93 18 Thermal 271 | . 25 61 107 78 Explosive 18 | . . . . 18 Electromagnetic . | . . . . . Robot Hit Streak 31 | . 21 16 31 15 Robot Miss Streak 5 | . 2 5 4 2 Penetration Max . | . . . . . Secondary Targets 4 | . 3 1 . . Max Gunslinging Chain 1 | . 1 1 . . Shots Hit Robots 311 | . 35 93 122 61 Core Hits 154 | . 15 43 47 49 Critical Kills . | . . . . . Critical Parts Destroyed . | . . . . . Critical Strikes 4 | . 3 1 . . Burn 4 | . 3 1 . . Melee Attacks . | . . . . . Impact . | . . . . . Slashing . | . . . . . Piercing . | . . . . . Sneak Attacks . | . . . . . Combat Hostiles . | . . . . . Follow-up Attacks . | . . . . . Damage Inflicted 7101 | . 419 1532 2508 2642 Guns 2191 | . 419 921 851 . Cannons 3423 | . . 611 1657 1155 Explosions 1487 | . . . . 1487 Melee . | . . . . . Ramming . | . . . . . Kinetic 1922 | . 170 697 851 204 Thermal 3692 | . 249 835 1657 951 Explosive 1487 | . . . . 1487 Electromagnetic . | . . . . . Impact . | . . . . . Slashing . | . . . . . Piercing . | . . . . . Highest Corruption 4 | . 2 4 4 4 Average Corruption 3 | . 2 4 4 4 Corruption Purged . | . . . . . Corruption Blocked . | . . . . . Effects 152 | . 2 36 71 43 Message Errors 34 | . 1 7 19 7 Matter Fused 35 | . . 6 16 13 Heat Flow Errors 19 | . . 1 10 8 Energy Discharges 22 | . 1 6 12 3 Parts Rejected 4 | . . 3 . 1 Parts Fused 2 | . . 2 . . Data Loss (minor) 20 | . . 8 5 7 Data Loss (major) 3 | . . 1 2 . Misfires 2 | . . . 1 1 Alerts 6 | . . . 5 1 Weapon Failures 5 | . . 2 1 2 Overload Shots . | . . . . . Overflow Damage 74 | . . . 13 61 Projectiles 55 | . . . 13 42 Explosions 19 | . . . . 19 Melee . | . . . . . Knockbacks 3 | . . . . 3 Impact . | . . . . . Kinetic 2 | . . . . 2 Secondary 1 | . . . . 1 Self-Inflicted Damage 148 | . . . . 148 Shots 4 | . . . . 4 Rammed . | . . . . . Targets Rammed 1 | . . . 1 . Kicked . | . . . . . Crushed 1 | . . . 1 . Highest Temperature 261 | . 44 78 261 261 Average Temperature 52 | . 23 8 45 69 Received Heat Transfer 1401 | . 90 414 249 648 Siege Activations . | . . . . . Robots Corrupted . | . . . . . Combat Hostiles . | . . . . . Parts Fried . | . . . . . Impact Corruptions . | . . . . . Robots Melted . | . . . . . Combat Hostiles . | . . . . . Parts Melted 9 | . . 2 5 2 Heat Transferred 7041 | . 962 1739 2886 1454 Parts Sabotaged . | . . . . . Parts Stolen . | . . . . . Parts Stripped . | . . . . . Power Chain Reactions . | . . . . . Missiles Intercepted . | . . . . . Alert | -11 -10 -9 -9 -9 ------- Run | Jun Mat Mat Sto Gar Peak Influence 1354 | . 233 424 488 1354 Initial 258 | . . 20 143 258 Average 406 | . 103 170 389 764 Maximum Alert Level 4 | . 1 2 2 4 Low Security (%) 24 | 100 91 63 3 . Level 1 32 | . 8 27 40 30 Level 2 30 | . . 8 55 15 Level 3 7 | . . . . 28 Level 4 6 | . . . . 24 Level 5 . | . . . . . High Security . | . . . . . Max Security . | . . . . . Squads Dispatched 8 | . 1 5 2 . Investigation 4 | . . 2 2 . Extermination . | . . . . . Reinforcement 4 | . 1 3 . . Assault . | . . . . . Garrison . | . . . . . Intercept . | . . . . . Searches Triggered . | . . . . . Construction Impeded . | . . . . . Haulers Reinforced . | . . . . . Active Scanning Responses . | . . . . . Cargo Convoy Interrupts . | . . . . . Stealth | -11 -10 -9 -9 -9 --------- Run | Jun Mat Mat Sto Gar Distress Signals 11 | . . 7 4 . Communications Jammed . | . . . . . Distress Signals . | . . . . . Times Spotted 113 | . 11 40 33 29 Peak Tracking Total 7 | . 3 5 5 7 Tactical Retreats 3 | . . 1 2 . Traps | -11 -10 -9 -9 -9 ------- Run | Jun Mat Mat Sto Gar Traps Triggered 9 | . 1 4 3 1 Indirectly . | . . . . . Trap Hack Attempts . | . . . . . Triggered . | . . . . . Disarmed . | . . . . . Reprogrammed . | . . . . . Reused . | . . . . . Traps Extracted . | . . . . . Installed . | . . . . . Triggered . | . . . . . Machines | -11 -10 -9 -9 -9 ---------- Run | Jun Mat Mat Sto Gar Machines Disabled 11 | . . . 4 7 Max in Single Turn 2 | . . . 1 2 Garrison Relay 3 | . . . . 3 Phase Generator 1 | . . . . 1 Machines Repaired . | . . . . . Machines Sabotaged . | . . . . . Overloaded Fab Kills . | . . . . . Hacking | -11 -10 -9 -9 -9 --------- Run | Jun Mat Mat Sto Gar Machines Accessed 17 | . 1 3 10 3 Terminals 15 | . 1 3 8 3 Fabricators . | . . . . . Repair Stations 1 | . . . 1 . Recycling Units . | . . . . . Scanalyzers . | . . . . . Garrison Access 1 | . . . 1 . Total Hacks 37 | . 1 9 19 8 Successful 15 | . 1 3 10 1 Failed 22 | . . 6 9 7 Catastrophic 5 | . . 2 1 2 Database Lockouts . | . . . . . Manual 15 | . 3 5 7 . Terminals 33 | . 1 9 15 8 Fabricators . | . . . . . Repair Stations 3 | . . . 3 . Recycling Units . | . . . . . Scanalyzers . | . . . . . Garrison Access 1 | . . . 1 . Terminal Hacks 10 | . 1 3 5 1 Robot Analysis 2 | . 1 1 . . Open Door 3 | . . . 3 . Branch Access Points 1 | . . 1 . . Terminal Index 1 | . . 1 . . Alert Level 1 | . . . 1 . Zone Layout 1 | . . . 1 . Garrison Registry 1 | . . . . 1 Fabricator Hacks . | . . . . . Repair Station Hacks 2 | . . . 2 . Scan Component 1 | . . . 1 . Repair 1 | . . . 1 . Recycling Unit Hacks . | . . . . . Scanalyzer . | . . . . . Garrison Access Hacks 1 | . . . 1 . Unlock Access 1 | . . . 1 . Unauthorized Hacks 2 | . . . 2 . Terminals 2 | . . . 2 . Botnet 2 | . . . 2 . Fabricators . | . . . . . Repair Stations . | . . . . . Recycling Units . | . . . . . Scanalyzers . | . . . . . Garrison Access . | . . . . . Data Cores Recovered 1 | . . . 1 . Used . | . . . . . Hacking Detections 12 | . 1 3 5 3 Full Trace Events 5 | . . 2 1 2 Feedback Events . | . . . . . Feedback Blocked . | . . . . . Robot Schematics Acquired . | . . . . . Robots Built . | . . . . . Authchips . | . . . . . Time . | . . . . . Total Robot Build Rating . | . . . . . Part Schematics Acquired . | . . . . . Parts Built . | . . . . . Authchips . | . . . . . Time . | . . . . . Total Part Build Rating . | . . . . . Parts Repaired 1 | . . . 1 . Time 26 | . . . 26 . Parts Recycled . | . . . . . Recycled Matter . | . . . . . Retrieved Matter . | . . . . . Retrieved Components . | . . . . . Parts Scanalyzed . | . . . . . Part Schematics Acquired . | . . . . . Parts Damaged . | . . . . . Bothacking | -11 -10 -9 -9 -9 ------------ Run | Jun Mat Mat Sto Gar Used RIF Installer . | . . . . . Robots Hacked . | . . . . . Non-combat . | . . . . . Combat . | . . . . . Robot Hacks Applied . | . . . . . Relay Couplers Released 14 | . . . . 14 Machine Destruction 14 | . . . . 14 Fabnet Peak Effective % . | . . . . . Robots Rewired . | . . . . . Allies Hacked . | . . . . . Hacks Repelled . | . . . . . Allies | -11 -10 -9 -9 -9 -------- Run | Jun Mat Mat Sto Gar Total Allies 1 | . . . 1 . Largest Group 1 | . . . 1 1 Highest-Rated Group 100 | . . . 100 100 Highest-Rated Ally 100 | . . . 100 100 Total Orders . | . . . . . Ally Attacks . | . . . . . Total Damage . | . . . . . Kills . | . . . . . Allies Corrupted . | . . . . . Allies Melted . | . . . . . Intel | -11 -10 -9 -9 -9 ------- Run | Jun Mat Mat Sto Gar Robot Analysis Total 2 | . 1 1 . . Derelict Logs Recovered . | . . . . . Drone Launches . | . . . . . Drone Recoveries . | . . . . . Exploration | -11 -10 -9 -9 -9 ------------- Run | Jun Mat Mat Sto Gar Turns Passed 7118 | 63 573 1602 3114 1766 Spaces Moved 2636 | 35 299 531 1122 649 Core 6 | 6 . . . . Treads 2630 | 29 299 531 1122 649 Legs . | . . . . . Wheels . | . . . . . Hover . | . . . . . Flight . | . . . . . Fastest Speed 50 | 50 160 160 240 240 Average Speed 231 | 141 160 247 240 240 Slowest Speed 320 | 160 160 320 320 320 Overloaded Moves . | . . . . . Propulsion Burnouts . | . . . . . Robots Hopped . | . . . . . Cave-ins Triggered . | . . . . . Exploration Rate (%) 54 | 3 46 55 93 74 Regions Visited 4 Branch Regions 1 Pre-discovered Areas . | . . . . . Known Exits Taken 2 | . . 1 1 . Unknown Exits Taken 2 | 1 1 . . . Scrap Searched . | . . . . . Spaces Dug . | . . . . . Terrain Destroyed 113 | . . . . 113 Melee . | . . . . . Projectile . | . . . . . AOE 113 | . . . . 113 Terrain Rammed . | . . . . . Walls Destroyed . | . . . . . Machines Disabled . | . . . . . Actions | -11 -10 -9 -9 -9 --------- Run | Jun Mat Mat Sto Gar Total 3175 | 48 344 682 1357 744 Wait 74 | . 13 1 60 . Move 2632 | 34 298 530 1121 649 Hop . | . . . . . Pick Up 75 | 8 6 39 19 3 Fast Attach 10 | . . 2 8 . Attach 36 | 5 2 16 4 9 Detach . | . . . . . Swap 24 | 1 . 8 12 3 Drop 49 | . . 14 32 3 Fire 272 | . 25 72 100 75 Melee . | . . . . . Ram . | . . . . . Kick . | . . . . . Crush 1 | . . . 1 . Escape Stasis 2 | . . . . 2 Rewire . | . . . . . Trap . | . . . . . Miscellaneous . | . . . . . Route ------- -11/Junkyard -10/Materials (discovered 2 exits: *Mat / [*Min]) -9/Materials (discovered 3 exits: [*Mat] / *Min / *Sto) -9/Storage (discovered 2 exits: [*Mat] / Gar) -9/Garrison (discovered 3 exits: [Rec x3]) History --------- Turn | Location | Event 3 | -11/Junkyard | Discovered new exit (range 16) 64 | -11/Junkyard | Entered Materials 324 | -10/Materials | Discovered new exit (range 5) 331 | -10/Materials | Build established: Mutant 390 | -10/Materials | Discovered new exit (range 15) 637 | -10/Materials | Entered another Materials area 637 | -9/Materials | Evolved 2 slots: Propulsion x1, Utility x1 1043 | -9/Materials | Identified exit to Mines 1043 | -9/Materials | Identified exit to Storage 1231 | -9/Materials | Lost 5 parts (1p2n1u1w) 1344 | -9/Materials | Discovered new exit (range 13) 1460 | -9/Materials | Build established: Scavenger-Mutant 2058 | -9/Materials | Build established: Mutant 2239 | -9/Materials | Entered Storage 3131 | -9/Storage | Build established: Scavenger-Mutant 3514 | -9/Storage | Discovered new exit (range 14) 3611 | -9/Storage | Build established: Mutant 4085 | -9/Storage | Repaired Huge Storage Unit 4911 | -9/Storage | Identified exit to Garrison 5278 | -9/Storage | Met 01-MTF 5353 | -9/Storage | Entered Garrison 5353 | -9/Garrison | Accompanied by 1 ally (01-MTF) 5358 | -9/Garrison | 01-MTF left 5396 | -9/Garrison | Triggered checkpoint 5418 | -9/Garrison | Core integrity fell below 50% 5888 | -9/Garrison | Garrison Relay disabled 5924 | -9/Garrison | Triggered checkpoint 5984 | -9/Garrison | Triggered checkpoint 5984 | -9/Garrison | Triggered checkpoint 6018 | -9/Garrison | Core integrity fell below 20% 6044 | -9/Garrison | Lost 3 parts (1p2n) 6045 | -9/Garrison | Destroyed 9 combat bots 6136 | -9/Garrison | Triggered checkpoint 6170 | -9/Garrison | Garrison Relay disabled 6173 | -9/Garrison | Lost 3 parts (1n1u1w) 6293 | -9/Garrison | Discovered new exit (range 22) 6293 | -9/Garrison | Discovered new exit (range 60) 6293 | -9/Garrison | Discovered new exit (range 84) 6739 | -9/Garrison | Garrison Relay disabled 7069 | -9/Garrison | Phase Generator disabled 7119 | -9/Garrison | Destroyed by L-31 Rogue with Katana Last Messages --------------- 06740_ Garrison Relay collapses. 06742_ System corrupted: Heat flow error (+162). 06742_ Garrison Relay collapses. 06757_ RIF Installer disabled. 06782_ System corrupted: Component data lost. 06806_ System corrupted: Energy discharge (-78). 06817_ The unstable cave ceiling collapses. 06843_ System corrupted: Heat flow error (+133). 06851_ Dropped Adv. Beam Cannon. 06851_ Dropped Imp. Light Cannon. 06852_ Acquired Hvy. Assault Cannon. 06894_ System corrupted: Matter fused (-6). 06936_ Acquired 23 matter. 06938_ System corrupted: Matter fused (-7). 06985_ System corrupted: Matter fused (-10). 07009_ G-34 Mercenary springs to life. 07010_ G-34 Mercenary destroyed. 07069_ Phase Generator explodes. 07073_ The unstable cave ceiling collapses. Garrison Door activated. Map ----- +----------------------------------------------------+ | ?????????????????????????????????????????????????? | | ?????????????????????????????????????????????????? | | ?????????????????????????????????????????????????? | | ?????????????????????????????????????????????????? | | ?????????????????????????????????????????????????? | | ?????????????????????????????????????????????????? | | ????????????????????????????????????????###??????? | | ?????????????????????????????????????#? # #??????? | | ????????????????????????????????????# # # ##??? | | ??????????????????????????????????### #?? | | ??????????????????????????????????# #? | | ????????????????#######??######??## # # ## | | ????????????????#"""""#??# #### # | | ????????????????#" ###?# < # # | | ????????????????#" #?# ##### # | | ????????????????#" #?### #???# # | | ????????????????#""# #???# #???# # | | ????????????????#### #???# #???# #? | | ???????????????????### #?### #???# # ??? | | ?????????????????????# ###T# #????# #????? | | ?????????????????????# ####### ##?????? | | ???????????????????### ##### ^ #?????? | | ???????????????????# " #???# ^ #?????? | | ???????????????????# " #???# ###### ##### #?????? | | ???????????????????# ##### ###### #???# #?????? | | ???????????????????# ll@ #???# #?????? | | ???????????????????# ############ #???# #?????? | | ???????????????????### #??????????# #???# #?????? | | ?????????????????????# #??????????# #???# ####### | | ?????????????????????# #???#####??# #???# ## # | | ?????????????????????# ###?# #??# #??## ## # | | ?????????????????????# #"#?#* #### #### * | | ?????????????????????# "#?#% " %[ | | ?????????????????????# "#?#% ####### =%= | | ?????????????????????# "#?# #T#?????# # ! # | | ?????????????????????# #"#?#######???### # | | ?????????????????????#####???????????# =%! | | ?????????????????????????????????????# %= = | | ?????????????????????????????????????# % | | ?????????????????????????????????????# % | | ?????????????????????????????????????### ## # | | ?????????????????????????????########### # | | ?????????????????????????????# *% | | ?????????????????????????????# | | ?????????????????????????????# ######## | | ?????????????????????????????# #?# #??## #= # | | ?????????????????????????????# #?# #???# ## # | | ?????????????????????????????# #?# #???# ####### | | ?????????????????????????????# ### ##### #?????? | | ?????????????????????????????# ## # #?????? | +----------------------------------------------------+ Best States ------------- Heat Dissipation 38 Energy Generation 14 Energy Capacity 280 Matter Stores 300 Matter Capacity 300 Sight Range 16 Terrain Scan Density 10 Armor Coverage 150 Core Shielding 20 Evasion (%) 40 Targeting Accuracy 6 Recoil Reduction 3 Item Schematics ----------------- None Robot Schematics ------------------ None Fabricated ------------ Nothing Alien Tech Used ----------------- None Achievements -------------- None Challenges ------------ None Game ------ Seed FissionFocalMeganuke Manual? 0 Play Time 00:26:36 Cumulative 95.1 hours Start 2023.10.07 @ 16:49:36 End 2023.10.07 @ 17:18:15 Sessions 1 Manual Loads 0 Difficulty Rogue Special Mode None Game No. 95 Rogue 59 Adventurer 36 Explorer 0 Win Type - Total 7 Types 2/0/5/0/0/0/0/0/0 Lore% 50 Gallery% 71 Achievement% 60 Wizard Run 0 Options --------- ASCII 0 Keyboard 0 Movement Mouse Keybinds 0 Fullscreen 1 Font 18/SmallcapsGlow Map View 76x50 Tactical HUD 1 Map Filters NONE Filters NONE Steam 1 RUN: 3e4563c5-7bfc-4703-8af4-410af8d70e2c